fUSD/lending_fUSD_20240618
["ID","MTS","AMOUNT","RATE_DAILY","PERIOD"]
[329787334,1718674268370,-666.38,0.00022191,3]
[329787335,1718674268380,-500.0,0.00022191,3]
[329787336,1718674268390,-500.0,0.00022191,3]
[329787337,1718674268399,-500.0,0.00022191,3]
[329787338,1718674268410,-500.0,0.00022191,3]
[329787339,1718674268419,-500.0,0.00022191,3]
[329787340,1718674268429,-572.96126177,0.00022191,3]
[329787341,1718674268442,-500.0,0.00022191,3]
[329787342,1718674268453,-500.0,0.00022191,3]
[329787343,1718674268462,-500.0,0.00022191,3]
[329787344,1718674268472,-500.0,0.00022191,3]
[329787345,1718674268482,-500.0,0.00022191,3]
[329787346,1718674268494,-500.0,0.00022191,3]
[329787347,1718674268504,-500.0,0.00022191,3]
[329787348,1718674268514,-500.0,0.00022191,3]
[329787349,1718674268525,-603.06512382,0.00022191,3]
[329787350,1718674268534,-490.98117741,0.00022191,3]
[329787351,1718674268544,-500.0,0.00022191,3]
[329787352,1718674268554,-500.0,0.00022191,3]
[329787353,1718674268576,-500.0,0.00022191,3]
[329787354,1718674268603,-500.0,0.00022191,3]
[329787355,1718674268623,-500.0,0.00022191,3]
[329787356,1718674268642,-500.0,0.00022191,3]
[329787357,1718674268664,-500.0,0.00022191,3]
[329787358,1718674268681,-500.0,0.00022191,3]
[329787359,1718674268699,-823.84,0.00022191,3]
[329787360,1718674268712,-391.1624403,0.00022191,3]
[329787361,1718674268729,-500.0,0.00022191,3]
[329787362,1718674268747,-500.0,0.00022191,3]
[329787363,1718674268767,-500.0,0.00022191,3]
[329787364,1718674268780,-500.0,0.00022191,3]
[329787365,1718674268798,-500.0,0.00022191,3]
[329787366,1718674268813,-500.0,0.00022191,3]
[329787367,1718674268831,-500.0,0.00022191,3]
[329787368,1718674268850,-500.0,0.00022191,3]
[329787369,1718674268865,-500.0,0.00022191,3]
[329787370,1718674268881,-500.0,0.00022191,3]
[329787371,1718674268896,-500.0,0.00022191,3]
[329787372,1718674268911,-500.0,0.00022191,3]
[329787373,1718674268926,-500.0,0.00022191,3]
[329787374,1718674268941,-629.66,0.00022191,3]
[329787375,1718674268956,-500.0,0.00022191,3]
[329787376,1718674268971,-500.0,0.00022191,3]
[329787377,1718674268986,-500.0,0.00022191,3]
[329787378,1718674269001,-500.0,0.00022191,3]
[329787379,1718674269017,-500.0,0.00022191,3]
[329787380,1718674269031,-500.0,0.00022191,3]
[329787381,1718674269047,-500.0,0.00022191,3]
[329787382,1718674269062,-500.0,0.00022191,3]
[329787383,1718674269076,-500.0,0.00022191,3]
[329787384,1718674269096,-500.0,0.00022191,3]
[329787385,1718674269111,-500.0,0.00022191,3]
[329787386,1718674269127,-500.0,0.00022191,3]
[329787387,1718674269141,-560.3,0.00022191,3]
[329787388,1718674269157,-500.0,0.00022191,3]
[329787389,1718674269173,-500.0,0.00022191,3]
[329787390,1718674269188,-500.0,0.00022191,3]
[329787391,1718674269204,-500.0,0.00022191,3]
[329787392,1718674269219,-622.63,0.00022191,3]
[329787393,1718674269234,-500.0,0.00022191,3]
[329787394,1718674269249,-500.0,0.00022191,3]
[329787395,1718674269265,-531.33086151,0.00022191,3]
[329787396,1718674269280,-500.0,0.00022191,2]
[329787397,1718674269301,-500.0,0.00022191,3]
[329787398,1718674269315,-318.00295198,0.00022191,3]
[329787399,1718674269330,-500.0,0.00022191,3]
[329787400,1718674269352,-500.0,0.00022191,3]
[329787401,1718674269367,-500.0,0.00022191,3]
[329787402,1718674269383,-500.0,0.00022191,3]
[329787403,1718674269398,-500.0,0.00022191,3]
[329787404,1718674269413,-500.0,0.00022191,3]
[329787405,1718674269428,-500.0,0.00022191,3]
[329787406,1718674269444,-500.0,0.00022191,3]
[329787407,1718674269460,-500.0,0.00022191,3]
[329787408,1718674269476,-500.0,0.00022191,3]
[329787409,1718674269491,-500.0,0.00022191,3]
[329787410,1718674269508,-500.0,0.00022191,3]
[329787411,1718674269523,-1227.14,0.00022191,3]
[329787412,1718674269538,-500.0,0.00022191,3]
[329787413,1718674269552,-500.0,0.00022191,3]
[329787414,1718674269568,-500.0,0.00022191,3]
[329787415,1718674269584,-500.0,0.00022191,3]
[329787416,1718674269605,-500.0,0.00022191,3]
[329787417,1718674269621,-500.0,0.00022191,3]
[329787418,1718674269636,-500.0,0.00022191,3]
[329787419,1718674269653,-769.34,0.00022191,3]
[329787420,1718674269669,-500.0,0.00022191,3]
[329787421,1718674269686,-1137.37,0.00022191,3]
[329787422,1718674269701,-500.0,0.00022191,3]
[329787423,1718674269717,-500.0,0.00022191,3]
[329787424,1718674269732,-623.82,0.00022191,3]
[329787425,1718674269748,-500.0,0.00022191,3]
[329787426,1718674269763,-1897.66,0.00022191,3]
[329787427,1718674269779,-500.0,0.00022191,3]
[329787428,1718674269810,-500.0,0.00022191,3]
[329787429,1718674269835,-500.0,0.00022191,3]
[329787430,1718674269862,-500.0,0.00022191,3]
[329787431,1718674269885,-500.0,0.00022191,3]
[329787432,1718674269905,-500.0,0.00022191,3]
[329787433,1718674269924,-500.0,0.00022191,3]
[329787434,1718674269942,-362.75112872,0.00022191,3]
[329787435,1718674269959,-500.0,0.00022191,3]
[329787436,1718674269975,-649.03,0.00022191,3]
[329787437,1718674269993,-595.83,0.00022191,3]
[329787438,1718674270010,-500.0,0.00022191,3]
[329787439,1718674270025,-500.0,0.00022191,3]
[329787440,1718674270042,-500.0,0.00022191,3]
[329787441,1718674270058,-555.3034722,0.00022191,3]
[329787442,1718674270073,-500.0,0.00022191,3]
[329787443,1718674270093,-500.0,0.00022191,3]
[329787444,1718674270109,-500.0,0.00022191,3]
[329787445,1718674270125,-502.44944691,0.00022191,3]
[329787446,1718674270140,-500.0,0.00022191,3]
[329787447,1718674270156,-1269.86,0.00022191,3]
[329787448,1718674270171,-500.0,0.00022191,3]
[329787449,1718674270186,-500.0,0.00022191,3]
[329787450,1718674270201,-500.0,0.00022191,3]
[329787451,1718674270216,-500.0,0.00022191,3]
[329787452,1718674270233,-500.0,0.00022191,3]
[329787453,1718674270249,-500.0,0.00022191,3]
[329787454,1718674270264,-403.27950165,0.00022191,3]
[329787455,1718674270273,-500.0,0.00022191,3]
[329787456,1718674270283,-500.0,0.00022191,3]
[329787457,1718674270292,-500.0,0.00022191,3]
[329787458,1718674270302,-500.0,0.00022191,3]
[329787459,1718674270311,-500.0,0.00022191,3]
[329787460,1718674270321,-500.0,0.00022191,3]
[329787461,1718674270332,-1000.0,0.00022191,3]
[329787462,1718674270348,-500.0,0.00022191,3]
[329787463,1718674270357,-500.0,0.00022191,3]
[329787464,1718674270662,-500.0,0.00022191,3]
[329787465,1718674270707,-500.0,0.00022191,3]
[329787466,1718674270721,-557.65,0.00022191,3]
[329787467,1718674270731,-500.0,0.00022191,3]
[329787468,1718674270741,-500.0,0.00022191,3]
[329787469,1718674270750,-500.0,0.00022191,3]
[329787470,1718674270760,-500.0,0.00022191,3]
[329787471,1718674270770,-972.39,0.00022191,3]
[329787472,1718674270779,-500.0,0.00022191,3]
[329787473,1718674270789,-500.0,0.00022191,3]
[329787474,1718674270799,-1886.57,0.00022191,3]
[329787475,1718674270809,-500.0,0.00022191,3]
[329787476,1718674270818,-500.0,0.00022191,3]
[329787477,1718674270827,-672.89,0.00022191,3]
[329787478,1718674270843,-500.0,0.00022191,3]
[329787479,1718674270852,-2000.0,0.00022191,3]
[329787480,1718674270866,-500.0,0.00022191,3]
[329787481,1718674270876,-535.57,0.00022191,3]
[329787482,1718674270885,-500.0,0.00022191,3]
[329787483,1718674270895,-500.0,0.00022191,3]
[329787484,1718674270905,-489.62975834,0.00022191,3]
[329787485,1718674270915,-500.0,0.00022191,2]
[329787486,1718674270924,-500.0,0.00022191,3]
[329787487,1718674270934,-700.42,0.00022191,3]
[329787488,1718674270944,-500.0,0.00022191,3]
[329787489,1718674270954,-500.0,0.00022191,3]
[329787490,1718674270964,-873.5,0.00022191,3]
[329787491,1718674270975,-500.0,0.00022191,3]
[329787492,1718674270985,-580.24346506,0.00022191,3]
[329787493,1718674270994,-807.6,0.00022191,3]
[329787494,1718674271004,-500.0,0.00022191,3]
[329787495,1718674271014,-500.0,0.00022191,3]
[329787496,1718674271024,-896.7,0.00022191,3]
[329787497,1718674271033,-500.0,0.00022191,3]
[329787498,1718674271043,-624.3,0.00022191,3]
[329787499,1718674271052,-752.15,0.00022191,3]
[329787500,1718674271062,-500.0,0.00022191,3]
[329787501,1718674271071,-842.01,0.00022191,3]
[329787502,1718674271080,-500.0,0.00022191,3]
[329787503,1718674271101,-500.0,0.00022191,3]
[329787504,1718674271111,-500.0,0.00022191,3]
[329787505,1718674271120,-500.0,0.00022191,3]
[329787506,1718674271130,-500.0,0.00022191,3]
[329787507,1718674271139,-502.04,0.00022191,3]
[329787508,1718674271149,-1147.33,0.00022191,3]
[329787509,1718674271158,-1019.7,0.00022191,3]
[329787510,1718674271168,-508.81572959,0.00022191,3]
[329787511,1718674271177,-500.0,0.00022191,3]
[329787512,1718674271187,-732.68,0.00022191,3]
[329787513,1718674271196,-500.0,0.00022191,3]
[329787514,1718674271205,-500.0,0.00022191,3]
[329787515,1718674271215,-500.0,0.00022191,3]
[329787516,1718674271225,-495.04925513,0.00022191,3]
[329787517,1718674271234,-767.07,0.00022191,3]
[329787518,1718674271244,-513.08,0.00022191,3]
[329787519,1718674271253,-500.0,0.00022191,3]
[329787520,1718674271264,-500.0,0.00022191,3]
[329787521,1718674271274,-788.34,0.00022191,3]
[329787522,1718674271284,-730.12,0.00022191,3]
[329787523,1718674271293,-500.0,0.00022191,3]
[329787524,1718674271304,-500.0,0.00022191,3]
[329787525,1718674271313,-500.0,0.00022191,3]
[329787526,1718674271323,-1154.5,0.00022191,3]
[329787527,1718674271332,-500.0,0.00022191,3]
[329787528,1718674271350,-500.0,0.00022191,3]
[329787529,1718674271359,-500.0,0.00022191,3]
[329787530,1718674271368,-500.0,0.00022191,3]
[329787531,1718674271377,-500.0,0.00022191,3]
[329787532,1718674271387,-500.0,0.00022191,3]
[329787533,1718674271395,-500.0,0.00022191,3]
[329787534,1718674271404,-500.0,0.00022191,3]
[329787535,1718674271413,-572.62,0.00022191,3]
[329787536,1718674271422,-199.08043205,0.00022191,3]
[329787537,1718674271431,-500.0,0.00022191,3]
[329787538,1718674271441,-500.0,0.00022191,3]
[329787539,1718674271450,-500.0,0.00022191,3]
[329787540,1718674271460,-500.0,0.00022191,3]
[329787541,1718674271470,-500.0,0.00022191,3]
[329787542,1718674271480,-1069.23,0.00022191,3]
[329787543,1718674271490,-500.0,0.00022191,3]
[329787544,1718674271501,-1253.02,0.00022191,3]
[329787545,1718674271510,-500.0,0.00022191,3]
[329787546,1718674271519,-993.87,0.00022191,3]
[329787547,1718674271529,-500.0,0.00022191,3]
[329787548,1718674271540,-500.0,0.00022191,3]
[329787549,1718674271549,-500.0,0.00022191,3]
[329787550,1718674271558,-500.0,0.00022191,3]
[329787551,1718674271567,-500.0,0.00022191,3]
[329787552,1718674271577,-500.0,0.00022191,3]
[329787553,1718674271592,-500.0,0.00022191,3]
[329787554,1718674271601,-500.0,0.00022191,3]
[329787555,1718674271610,-381.03534475,0.00022191,3]
[329787556,1718674271619,-821.46,0.00022191,3]
[329787557,1718674271628,-500.0,0.00022191,3]
[329787558,1718674271638,-617.88990281,0.00022191,3]
[329787559,1718674271647,-970.91,0.00022191,3]
[329787560,1718674271656,-500.0,0.00022191,3]
[329787561,1718674271665,-500.0,0.00022191,3]
[329787562,1718674271674,-500.0,0.00022191,3]
[329787563,1718674271683,-760.9,0.00022191,3]
[329787564,1718674271692,-500.0,0.00022191,3]
[329787565,1718674271702,-522.4,0.00022191,3]
[329787566,1718674271711,-510.02790794,0.00022191,3]
[329787567,1718674271721,-500.0,0.00022191,3]
[329787568,1718674271730,-500.0,0.00022191,3]
[329787569,1718674271739,-500.0,0.00022191,3]
[329787570,1718674271750,-500.0,0.00022191,3]
[329787571,1718674271759,-602.86,0.00022191,3]
[329787572,1718674271768,-1083.8,0.00022191,3]
[329787573,1718674271778,-500.0,0.00022191,3]
[329787574,1718674271788,-500.0,0.00022191,3]
[329787575,1718674271798,-500.0,0.00022191,3]
[329787576,1718674271807,-500.0,0.00022191,3]
[329787577,1718674271817,-853.53,0.00022191,3]
[329787578,1718674271827,-500.0,0.00022191,3]
[329787579,1718674271846,-500.0,0.00022191,3]
[329787580,1718674271855,-603.93,0.00022191,3]
[329787581,1718674271864,-500.0,0.00022191,3]
[329787582,1718674271873,-500.0,0.00022191,3]
[329787583,1718674271883,-500.0,0.00022191,3]
[329787584,1718674271892,-500.0,0.00022191,3]
[329787585,1718674271901,-500.0,0.00022191,3]
[329787586,1718674271911,-500.0,0.00022191,3]
[329787587,1718674271920,-691.96,0.00022191,3]
[329787588,1718674271929,-500.0,0.00022191,3]
[329787589,1718674271939,-575.3439532,0.00022191,3]
[329787590,1718674271948,-500.0,0.00022191,3]
[329787591,1718674271957,-752.62,0.00022191,3]
[329787592,1718674271967,-500.0,0.00022191,3]
[329787593,1718674271976,-1111.55,0.00022191,3]
[329787594,1718674271986,-500.0,0.00022191,3]
[329787595,1718674271995,-500.0,0.00022191,3]
[329787596,1718674272004,-500.0,0.00022191,3]
[329787597,1718674272014,-500.0,0.00022191,3]
[329787598,1718674272023,-500.0,0.00022191,3]
[329787599,1718674272033,-500.0,0.00022191,3]
[329787600,1718674272042,-500.0,0.00022191,3]
[329787601,1718674272052,-567.51,0.00022191,3]
[329787602,1718674272061,-500.0,0.00022191,3]
[329787603,1718674272071,-500.0,0.00022191,3]
[329787604,1718674272080,-954.24,0.00022191,3]
[329787605,1718674272097,-500.0,0.00022191,3]
[329787606,1718674272107,-771.46,0.00022191,3]
[329787607,1718674272115,-554.41744389,0.00022191,3]
[329787608,1718674272125,-500.0,0.00022191,3]
[329787609,1718674272134,-500.0,0.00022191,3]
[329787610,1718674272144,-500.0,0.00022191,2]
[329787611,1718674272153,-903.49,0.00022191,3]
[329787612,1718674272162,-548.43014154,0.00022191,3]
[329787613,1718674272172,-500.0,0.00022191,3]
[329787614,1718674272181,-500.0,0.00022191,3]
[329787615,1718674272191,-500.0,0.00022191,3]
[329787616,1718674272200,-500.0,0.00022191,3]
[329787617,1718674272210,-500.0,0.00022191,3]
[329787618,1718674272219,-1108.99,0.00022191,3]
[329787619,1718674272229,-500.0,0.00022191,3]
[329787620,1718674272239,-500.0,0.00022191,3]
[329787621,1718674272248,-500.0,0.00022191,3]
[329787622,1718674272257,-500.0,0.00022191,3]
[329787623,1718674272267,-500.0,0.00022191,3]
[329787624,1718674272276,-500.0,0.00022191,3]
[329787625,1718674272285,-500.0,0.00022191,3]
[329787626,1718674272294,-620.29,0.00022191,3]
[329787627,1718674272304,-500.0,0.00022191,3]
[329787628,1718674272314,-500.0,0.00022191,3]
[329787629,1718674272323,-775.57,0.00022191,3]
[329787630,1718674272332,-500.0,0.00022191,3]
[329787631,1718674272347,-500.0,0.00022191,3]
[329787632,1718674272357,-500.0,0.00022191,3]
[329787633,1718674272366,-765.52,0.00022191,3]
[329787634,1718674272376,-500.0,0.00022191,3]
[329787635,1718674272385,-500.0,0.00022191,3]
[329787636,1718674272395,-500.0,0.00022191,3]
[329787637,1718674272404,-507.89,0.00022191,3]
[329787638,1718674272413,-500.0,0.00022191,3]
[329787639,1718674272423,-500.0,0.00022191,3]
[329787640,1718674272432,-500.0,0.00022191,3]
[329787641,1718674272445,-500.0,0.00022191,3]
[329787642,1718674272454,-500.0,0.00022191,3]
[329787643,1718674272464,-500.0,0.00022191,3]
[329787644,1718674272473,-500.0,0.00022191,3]
[329787645,1718674272483,-500.0,0.00022191,3]
[329787646,1718674272492,-1111.18,0.00022191,3]
[329787647,1718674272501,-1222.44,0.00022191,3]
[329787648,1718674272511,-552.67658949,0.00022191,3]
[329787649,1718674272521,-500.0,0.00022191,3]
[329787650,1718674272530,-500.0,0.00022191,3]
[329787651,1718674272540,-530.29841373,0.00022191,3]
[329787652,1718674272549,-500.0,0.00022191,3]
[329787653,1718674272559,-825.38,0.00022191,3]
[329787654,1718674272568,-563.41,0.00022191,3]
[329787655,1718674272577,-287.2,0.00022191,3]
[329787656,1718674272593,-612.33,0.00022191,3]
[329787657,1718674272602,-500.0,0.00022191,3]
[329787658,1718674272612,-500.0,0.00022191,3]
[329787659,1718674272621,-500.0,0.00022191,3]
[329787660,1718674272630,-744.35,0.00022191,3]
[329787661,1718674272639,-1168.2,0.00022191,3]
[329787662,1718674272647,-500.0,0.00022191,3]
[329787663,1718674272656,-617.58622161,0.00022191,3]
[329787664,1718674272665,-500.0,0.00022191,3]
[329787665,1718674272674,-500.0,0.00022191,3]
[329787666,1718674272683,-500.0,0.00022191,3]
[329787667,1718674272692,-500.0,0.00022191,3]
[329787668,1718674272701,-536.34803915,0.00022191,3]
[329787669,1718674272711,-643.4629695,0.00022191,3]
[329787670,1718674272721,-1584.9,0.00022191,3]
[329787671,1718674272730,-218.17530004,0.00022191,3]
[329787672,1718674272740,-500.0,0.00022191,3]
[329787673,1718674272749,-500.0,0.00022191,3]
[329787674,1718674272759,-638.96791965,0.00022191,3]
[329787675,1718674272769,-500.0,0.00022191,3]
[329787676,1718674272778,-500.0,0.00022191,3]
[329787677,1718674272788,-1339.63,0.00022191,3]
[329787678,1718674272797,-500.0,0.00022191,3]
[329787679,1718674272807,-661.33,0.00022191,3]
[329787680,1718674272816,-500.0,0.00022191,3]
[329787681,1718674272825,-500.0,0.00022191,3]
[329787682,1718674272837,-500.0,0.00022191,3]
[329787683,1718674272851,-500.0,0.00022191,3]
[329787684,1718674272860,-500.0,0.00022191,3]
[329787685,1718674272869,-500.0,0.00022191,3]
[329787686,1718674272878,-600.27296182,0.00022191,3]
[329787687,1718674272889,-500.0,0.00022191,3]
[329787688,1718674272898,-835.4,0.00022191,3]
[329787689,1718674272907,-500.0,0.00022191,3]
[329787690,1718674272917,-526.96,0.00022191,3]
[329787691,1718674272926,-472.38483164,0.00022191,3]
[329787692,1718674272936,-500.0,0.00022191,3]
[329787693,1718674272945,-500.0,0.00022191,3]
[329787694,1718674272954,-500.0,0.00022191,3]
[329787695,1718674272963,-1383.56,0.00022191,3]
[329787696,1718674272972,-500.0,0.00022191,3]
[329787697,1718674272982,-1147.94,0.00022191,3]
[329787698,1718674272991,-500.0,0.00022191,3]
[329787699,1718674273001,-937.65,0.00022191,3]
[329787700,1718674273011,-1499.69,0.00022191,3]
[329787701,1718674273020,-500.0,0.00022191,3]
[329787702,1718674273029,-542.11737804,0.00022191,3]
[329787703,1718674273039,-500.0,0.00022191,3]
[329787704,1718674273048,-500.0,0.00022191,3]
[329787705,1718674273058,-500.0,0.00022191,3]
[329787706,1718674273067,-500.0,0.00022191,3]
[329787707,1718674273077,-984.83,0.00022191,3]
[329787708,1718674273091,-512.10357826,0.00022191,3]
[329787709,1718674273100,-500.0,0.00022191,3]
[329787710,1718674273109,-500.0,0.00022191,3]
[329787711,1718674273118,-500.17,0.00022191,3]
[329787712,1718674273127,-720.19,0.00022191,3]
[329787713,1718674273136,-376.56,0.00022191,3]
[329787714,1718674273146,-520.43,0.00022191,3]
[329787715,1718674273155,-500.0,0.00022191,3]
[329787716,1718674273164,-1244.19,0.00022191,3]
[329787717,1718674273174,-14271.55,0.00022191,3]
[329787718,1718674273184,-854.25,0.00022191,3]
[329787719,1718674273193,-500.0,0.00022191,3]
[329787720,1718674273203,-500.0,0.00022191,3]
[329787721,1718674273212,-500.0,0.00022191,3]
[329787722,1718674273222,-528.92,0.00022191,3]
[329787723,1718674273231,-1017.17,0.00022191,3]
[329787724,1718674273241,-500.0,0.00022191,3]
[329787725,1718674273250,-500.0,0.00022191,3]
[329787726,1718674273260,-753.1,0.00022191,3]
[329787727,1718674273269,-500.0,0.00022191,3]
[329787728,1718674273279,-500.0,0.00022191,3]
[329787729,1718674273288,-500.0,0.00022191,3]
[329787730,1718674273298,-500.0,0.00022191,3]
[329787731,1718674273308,-645.11,0.00022191,3]
[329787732,1718674273317,-500.0,0.00022191,3]
[329787733,1718674273327,-500.0,0.00022191,3]
[329787734,1718674273342,-759.95,0.00022191,3]
[329787735,1718674273351,-500.0,0.00022191,3]
[329787736,1718674273361,-995.5,0.00022191,3]
[329787737,1718674273371,-500.0,0.00022191,3]
[329787738,1718674273381,-736.32,0.00022191,3]
[329787739,1718674273391,-500.0,0.00022191,3]
[329787740,1718674273402,-500.0,0.00022191,3]
[329787741,1718674273411,-500.0,0.00022191,3]
[329787742,1718674273421,-993.92,0.00022191,3]
[329787743,1718674273432,-971.37,0.00022191,3]
[329787744,1718674273443,-500.0,0.00022191,3]
[329787745,1718674273452,-500.0,0.00022191,3]
[329787746,1718674273464,-500.0,0.00022191,3]
[329787747,1718674273475,-500.0,0.00022191,3]
[329787748,1718674273485,-1037.46,0.00022191,3]
[329787749,1718674273495,-500.0,0.00022191,3]
[329787750,1718674273507,-500.0,0.00022191,3]
[329787751,1718674273517,-500.0,0.00022191,3]
[329787752,1718674273527,-500.0,0.00022191,3]
[329787753,1718674273539,-500.0,0.00022191,3]
[329787754,1718674273548,-500.0,0.00022191,3]
[329787755,1718674273558,-1039.13,0.00022191,3]
[329787756,1718674273567,-500.0,0.00022191,3]
[329787757,1718674273577,-2898.2,0.00022191,3]
[329787758,1718674273591,-500.0,0.00022191,3]
[329787759,1718674273600,-508.84854066,0.00022191,3]
[329787760,1718674273610,-500.0,0.00022191,3]
[329787761,1718674273620,-802.06,0.00022191,3]
[329787762,1718674273630,-500.0,0.00022191,3]
[329787763,1718674273640,-500.0,0.00022191,3]
[329787764,1718674273649,-1376.06,0.00022191,3]
[329787765,1718674273659,-500.0,0.00022191,3]
[329787766,1718674273669,-6253.28,0.00022191,3]
[329787767,1718674273680,-500.0,0.00022191,3]
[329787768,1718674273689,-1428.23,0.00022191,3]
[329787769,1718674273699,-500.0,0.00022191,3]
[329787770,1718674273710,-500.0,0.00022191,3]
[329787771,1718674273720,-734.95,0.00022191,3]
[329787772,1718674273730,-501.44905871,0.00022191,3]
[329787773,1718674273740,-500.0,0.00022191,3]
[329787774,1718674273751,-527.54,0.00022191,3]
[329787775,1718674273761,-285.69642614,0.00022191,3]
[329787776,1718674273771,-1348.04,0.00022191,3]
[329787777,1718674273780,-500.0,0.00022191,3]
[329787778,1718674273790,-5610.58,0.00022191,3]
[329787779,1718674273800,-500.0,0.00022191,3]
[329787780,1718674273809,-2774.12,0.00022191,3]
[329787781,1718674273819,-519.32,0.00022191,3]
[329787782,1718674273830,-500.0,0.00022191,3]
[329787783,1718674273846,-170.39,0.00022191,3]
[329787784,1718674273856,-500.0,0.00022191,3]
[329787785,1718674273866,-500.0,0.00022191,3]
[329787786,1718674273875,-1101.33,0.00022191,3]
[329787787,1718674273885,-500.0,0.00022191,3]
[329787788,1718674273894,-1627.28,0.00022191,3]
[329787789,1718674273904,-790.14,0.00022191,3]
[329787790,1718674273915,-3008.62,0.00022191,3]
[329787791,1718674273926,-1457.44,0.00022191,3]
[329787792,1718674273936,-575.24,0.00022191,3]
[329787793,1718674273947,-500.0,0.00022191,3]
[329787794,1718674273958,-625.99167434,0.00022191,3]
[329787795,1718674273969,-500.0,0.00022191,3]
[329787796,1718674274159,-760.35,0.00022191,3]
[329787797,1718674274168,-500.0,0.00022191,3]
[329787798,1718674274178,-1208.34,0.00022191,3]
[329787799,1718674274187,-500.0,0.00022191,3]
[329787800,1718674274198,-4848.48,0.00022191,3]
[329787801,1718674274208,-1589.85,0.00022191,3]
[329787802,1718674274218,-589.3,0.00022191,3]
[329787803,1718674274227,-805.12,0.00022191,3]
[329787804,1718674274237,-500.0,0.00022191,3]
[329787805,1718674274247,-500.0,0.00022191,3]
[329787806,1718674274257,-662.08,0.00022191,3]
[329787807,1718674274266,-1221.18,0.00022191,3]
[329787808,1718674274276,-2146.67,0.00022191,3]
[329787809,1718674274285,-327.74245612,0.00022191,3]
[329787810,1718674274295,-1335.51,0.00022191,3]
[329787811,1718674274305,-500.0,0.00022191,3]
[329787812,1718674274315,-12271.93,0.00022191,3]
[329787813,1718674274325,-15922.39,0.00022191,3]
[329787814,1718674274334,-500.0,0.00022191,3]
[329787815,1718674274351,-500.0,0.00022191,3]
[329787816,1718674274360,-727.62,0.00022191,3]
[329787817,1718674274369,-1412.3,0.00022191,3]
[329787818,1718674274378,-589.39,0.00022191,3]
[329787819,1718674274387,-500.0,0.00022191,3]
[329787820,1718674274397,-571.59,0.00022191,3]
[329787821,1718674274406,-500.0,0.00022191,3]
[329787822,1718674274415,-4635.4,0.00022191,3]
[329787823,1718674274424,-571.25,0.00022191,3]
[329787824,1718674274433,-500.0,0.00022191,3]
[329787825,1718674274443,-500.0,0.00022191,3]
[329787826,1718674274454,-1780.73,0.00022191,3]
[329787827,1718674274464,-33245.11,0.00022191,3]
[329787828,1718674274475,-500.0,0.00022191,3]
[329787829,1718674274484,-500.0,0.00022191,3]
[329787830,1718674274495,-500.0,0.00022191,3]
[329787831,1718674274505,-839.45,0.00022191,3]
[329787832,1718674274515,-500.0,0.00022191,3]
[329787833,1718674274525,-5540.37,0.00022191,3]